bitfinex-derivatives/quotes_BTCF0:USTF0_20240814
["timestamp","ask_amount","ask_price","bid_price","bid_amount"]
[1723646022371,0.084087,59439.0,59438.0,0.04995186]
[1723646022674,0.084088,59438.0,59434.0,0.04995186]
[1723646022975,0.084088,59438.0,59433.0,0.04995186]
[1723646023184,0.444895,59434.0,59430.0,0.04995186]
[1723646023377,0.3608,59432.0,59429.0,0.13405186]
[1723646023571,0.3608,59432.0,59430.0,0.00025218]
[1723646023780,0.3608,59432.0,59430.0,0.08435118]
[1723646024274,0.3608,59432.0,59431.0,0.084098]
[1723646024472,0.3598,59432.0,59431.0,0.084098]
[1723646024669,0.6426601,59432.0,59431.0,0.084098]
[1723646025075,0.084098,59431.0,59430.0,0.00125218]
[1723646025376,0.6445401,59432.0,59430.0,0.00025218]
[1723646025578,0.6436601,59432.0,59430.0,0.00025218]
[1723646026275,0.084098,59431.0,59430.0,0.00025218]
[1723646026472,0.084102,59428.0,59427.0,0.00020842]
[1723646026673,0.3608,59428.0,59413.0,0.084123]
[1723646026881,0.7216,59414.0,59401.0,0.04995186]
[1723646027078,0.7216,59414.0,59401.0,0.08414]
[1723646027079,0.3608,59402.0,59401.0,0.08414]
[1723646027570,0.3608,59402.0,59384.0,0.04995186]
[1723646027571,0.6438032,59402.0,59384.0,0.04995186]
[1723646027767,0.7216,59385.0,59384.0,0.084164]
[1723646027973,0.72173487,59385.0,59384.0,0.084164]
[1723646028167,0.72173487,59385.0,59368.0,0.08344265]
[1723646028168,1.00459497,59385.0,59378.0,0.00991684]
[1723646028374,1.00459497,59385.0,59368.0,0.00017788]
[1723646028375,0.3608,59379.0,59368.0,0.00017788]
[1723646028580,0.805786,59369.0,59368.0,0.00017788]
[1723646028770,0.80591168,59369.0,59368.0,0.00017788]
[1723646028977,1.59409178,59369.0,59368.0,0.00017788]
[1723646029174,1.08877178,59369.0,59368.0,0.00017788]
[1723646030085,1.00458578,59369.0,59368.0,0.00017788]
[1723646031083,0.72172568,59369.0,59368.0,0.00017788]
[1723646033080,0.72172568,59369.0,59368.0,0.08436488]
[1723646033283,1.00458578,59369.0,59368.0,0.00017788]
[1723646033477,0.99158578,59369.0,59368.0,0.00017788]
[1723646033877,0.70872568,59369.0,59368.0,0.08436488]
[1723646034983,0.34792568,59369.0,59368.0,0.08436488]
[1723646035177,0.34892568,59369.0,59368.0,0.08436488]
[1723646035777,0.34892568,59369.0,59368.0,0.67387188]
[1723646035980,0.34992568,59369.0,59368.0,0.67387188]
[1723646036483,0.34892568,59369.0,59368.0,0.06936488]
[1723646036783,0.34892568,59369.0,59368.0,0.57468488]
[1723646037180,0.34792568,59369.0,59368.0,0.65887188]
[1723646037384,0.34892568,59369.0,59368.0,0.65887188]
[1723646037584,0.00025261,59374.0,59373.0,0.08418]
[1723646037877,0.3608,59386.0,59378.0,0.084173]
[1723646038082,0.3608,59395.0,59379.0,0.084171]
[1723646038282,0.3608,59390.0,59373.0,0.3608]
[1723646038479,0.3608,59378.0,59373.0,0.36887217]
[1723646038674,0.3608,59378.0,59377.0,0.084174]
[1723646038876,0.084177,59376.0,59368.0,0.007]
[1723646039075,0.444986,59369.0,59368.0,0.007]
[1723646039377,0.3608,59369.0,59368.0,0.007]
[1723646039572,0.6436601,59369.0,59368.0,0.091187]
[1723646040179,0.3608,59369.0,59368.0,0.091187]
[1723646040387,0.6436601,59369.0,59368.0,0.007]
[1723646040684,0.3608,59369.0,59368.0,0.091187]
[1723646040882,0.6436601,59369.0,59368.0,0.091187]
[1723646041183,0.3608,59369.0,59368.0,0.091187]
[1723646041374,0.6436601,59369.0,59368.0,0.091187]
[1723646041574,0.3608,59369.0,59368.0,0.091187]
[1723646041981,0.6436601,59369.0,59368.0,0.091187]
[1723646042181,0.3608,59369.0,59368.0,0.091187]
[1723646042377,0.3578,59369.0,59368.0,0.084187]
[1723646042779,0.36100831,59378.0,59363.0,0.00025261]
[1723646042986,0.64386841,59378.0,59363.0,0.00025261]
[1723646043183,0.64386841,59378.0,59375.0,0.084177]
[1723646043380,0.65178299,59378.0,59363.0,0.00817692]
[1723646043580,0.64386841,59378.0,59377.0,0.084174]
[1723646043785,0.36100831,59378.0,59377.0,0.168348]
[1723646044178,0.36100831,59378.0,59377.0,0.084174]
[1723646044576,0.36100831,59378.0,59377.0,0.168348]
[1723646044773,0.36100831,59378.0,59377.0,0.084174]
[1723646044984,0.36100831,59378.0,59368.0,0.001]
[1723646044985,0.64386841,59378.0,59368.0,0.001]
[1723646045289,0.3608,59401.0,59377.0,0.3608]
[1723646045483,0.3608,59401.0,59395.0,0.084149]
[1723646045484,0.3608,59396.0,59395.0,0.084149]
[1723646045682,0.3608,59396.0,59376.0,0.084175]
[1723646045683,0.084156,59390.0,59376.0,0.084175]
[1723646045989,0.3608,59396.0,59375.0,0.3608]
[1723646045990,0.3608,59389.0,59387.0,0.084159]
[1723646046175,0.3608,59389.0,59388.0,0.084159]
[1723646046373,0.3608,59389.0,59375.0,0.444977]
[1723646046374,0.72027772,59389.0,59383.0,0.084165]
[1723646046581,0.3608,59384.0,59376.0,0.084175]
[1723646046794,0.084181,59373.0,59371.0,0.084182]
[1723646046981,0.3608,59378.0,59368.0,0.001]
[1723646046982,5.231e-05,59372.0,59368.0,0.001]
[1723646047283,0.084185,59370.0,59368.0,0.001]
[1723646047484,0.3608,59371.0,59364.0,0.00025261]
[1723646047783,0.084186,59369.0,59367.0,0.084188]
[1723646047986,0.084189,59367.0,59364.0,0.08444461]
[1723646048192,0.084191,59365.0,59364.0,0.00025261]
[1723646048689,0.50541231,59364.0,59347.0,0.00017436]
[1723646048888,0.445016,59348.0,59347.0,0.00017436]
[1723646049079,0.445016,59348.0,59325.0,0.51665186]
[1723646049080,0.084219,59346.0,59333.0,0.084235]
[1723646049274,0.44503,59338.0,59329.0,0.3608]
[1723646049485,0.44503,59338.0,59317.0,0.3608]
[1723646049486,0.3608,59338.0,59317.0,0.41075186]
[1723646049685,0.63606841,59338.0,59336.0,0.084232]
[1723646049988,0.27526841,59338.0,59336.0,0.084232]
[1723646050190,0.3608,59352.0,59336.0,0.084232]
[1723646050191,0.00012114,59337.0,59336.0,0.084232]
[1723646050395,0.00012114,59337.0,59336.0,0.445032]
[1723646050687,0.00012114,59337.0,59336.0,0.950632]
[1723646050888,0.00025283,59343.0,59342.0,0.084224]
[1723646051185,0.3608,59353.0,59342.0,0.86632]
[1723646051386,0.3608,59353.0,59342.0,0.3608]
[1723646051599,0.001,59337.0,59336.0,0.3748]
[1723646051790,0.3608,59353.0,59348.0,0.084214]
[1723646052085,0.36090553,59352.0,59342.0,0.084224]
[1723646052387,0.3608,59343.0,59342.0,0.01]
[1723646052977,0.3608,59347.0,59346.0,0.084218]
[1723646053391,0.36192136,59347.0,59346.0,0.084218]
[1723646054985,0.63718977,59347.0,59346.0,0.084218]
[1723646055187,0.99798977,59347.0,59342.0,0.01]
[1723646055488,0.00112136,59345.0,59342.0,0.01]
[1723646055887,0.27638977,59345.0,59342.0,0.01]
[1723646056099,0.27638977,59345.0,59341.0,0.00025283]
[1723646056392,0.445024,59342.0,59341.0,0.00025283]
[1723646056593,0.44512953,59342.0,59341.0,0.00025283]
[1723646056795,0.72039794,59342.0,59341.0,0.00025283]
[1723646057291,0.63617394,59342.0,59341.0,0.05020469]
[1723646057490,0.6372953,59342.0,59341.0,0.08447883]
[1723646057790,0.6372953,59342.0,59341.0,0.13443069]
[1723646057991,0.6372953,59342.0,59341.0,0.08447883]
[1723646058189,0.6372953,59342.0,59341.0,0.13443069]
[1723646058383,0.6372953,59342.0,59341.0,0.08447883]
[1723646058890,0.36202689,59342.0,59334.0,0.00819184]
[1723646059103,0.3608,59335.0,59332.0,0.05014787]
[1723646059293,0.3608,59333.0,59332.0,0.084238]
[1723646059487,0.36192136,59333.0,59332.0,0.084238]
[1723646059688,0.63718977,59333.0,59332.0,0.084238]
[1723646062692,0.63718977,59333.0,59332.0,0.13431272]
[1723646062890,0.36192136,59333.0,59332.0,0.09249209]
[1723646064696,0.00112136,59333.0,59332.0,0.59813209]
[1723646064892,0.00025283,59338.0,59337.0,0.084231]
[1723646065090,0.00010553,59342.0,59341.0,0.084225]
[1723646065289,0.00010553,59342.0,59341.0,0.13428259]
[1723646065592,0.00010553,59342.0,59341.0,0.084225]
[1723646065800,0.00010553,59342.0,59341.0,0.13428259]
[1723646066096,0.00010553,59342.0,59341.0,0.15096328]
[1723646066291,0.00010553,59342.0,59341.0,0.084225]
[1723646066490,0.00010553,59342.0,59341.0,0.15098122]
[1723646066692,0.00010553,59342.0,59341.0,0.084225]
[1723646066894,0.00010553,59342.0,59341.0,0.15098195]
[1723646067090,0.00025283,59347.0,59346.0,0.084218]
[1723646067595,0.00025283,59347.0,59346.0,0.15097995]
[1723646067993,0.00025283,59347.0,59342.0,0.3608]
[1723646068296,0.00025283,59347.0,59344.0,0.06680704]
[1723646068506,0.00025283,59347.0,59346.0,0.05011566]
[1723646068689,0.00025283,59347.0,59344.0,0.08422]
[1723646068690,0.00025283,59347.0,59344.0,0.06680704]
[1723646068892,0.3608,59360.0,59346.0,0.084218]
[1723646069198,0.63606841,59360.0,59358.0,0.13430868]
[1723646069497,0.63606841,59360.0,59352.0,0.05010768]
[1723646069498,0.084205,59356.0,59352.0,0.05010768]
[1723646069692,0.084205,59356.0,59346.0,0.002]
[1723646069693,0.3608,59353.0,59350.0,0.05010768]
[1723646069892,0.3608,59353.0,59349.0,0.05010768]
[1723646069893,0.3608,59352.0,59349.0,0.05010768]
[1723646070202,0.3608,59352.0,59348.0,0.05010768]
[1723646070394,0.3608,59352.0,59346.0,0.002]
[1723646070395,0.63606841,59352.0,59349.0,0.05010768]
[1723646070596,0.63606841,59352.0,59346.0,0.06881024]
[1723646070597,0.63606841,59352.0,59351.0,0.05010768]
[1723646071000,0.084212,59351.0,59349.0,0.05010768]
[1723646071496,0.084212,59351.0,59350.0,0.05010768]
[1723646071497,0.35948041,59351.0,59350.0,0.05010768]
[1723646071702,0.35948041,59351.0,59347.0,0.06681024]
[1723646071994,0.35948041,59351.0,59348.0,0.001]
[1723646072200,0.35948041,59351.0,59350.0,0.05014242]
[1723646072400,0.084213,59350.0,59348.0,0.001]
[1723646072590,0.37500464,59352.0,59348.0,0.001]
[1723646072792,0.65027305,59352.0,59350.0,0.084213]
[1723646073190,0.65027305,59352.0,59350.0,0.15102324]
[1723646073386,0.65027305,59352.0,59348.0,0.06781024]
[1723646073806,0.65027305,59352.0,59346.0,0.00025283]
[1723646073807,0.004,59351.0,59349.0,0.06681024]
[1723646074102,0.004,59351.0,59350.0,0.06681024]
[1723646074302,0.004,59351.0,59349.0,0.06681024]
[1723646074303,0.27926841,59351.0,59349.0,0.06681024]
[1723646074493,0.084216,59348.0,59347.0,0.06681024]
[1723646074796,0.084216,59348.0,59346.0,0.00025283]
[1723646075000,0.3608,59347.0,59346.0,0.00025283]
[1723646075209,0.3608,59347.0,59346.0,0.05047247]
[1723646075396,0.63606841,59347.0,59346.0,0.05051077]
[1723646076399,0.63606841,59347.0,59343.0,0.06710294]
[1723646076400,0.084221,59344.0,59343.0,0.06710294]
[1723646076603,0.3608,59344.0,59342.0,0.02895063]
[1723646076799,0.3608,59344.0,59336.0,0.0671111]
[1723646076800,0.084234,59335.0,59334.0,0.0671111]
[1723646077002,0.445034,59335.0,59334.0,0.0671111]
[1723646077304,0.445034,59335.0,59326.0,0.09210375]
[1723646077305,0.8664,59335.0,59329.0,0.08388027]
[1723646077495,0.084243,59329.0,59328.0,0.08388027]
[1723646077696,0.084243,59329.0,59328.0,0.08389118]
[1723646077899,0.084243,59329.0,59328.0,0.16656443]
[1723646078101,0.084243,59329.0,59328.0,0.08268416]
[1723646078703,0.084243,59329.0,59328.0,0.08294934]
[1723646078905,0.90564,59329.0,59325.0,0.03245047]
[1723646079103,0.90564,59329.0,59309.0,0.00018806]
[1723646079104,0.3608,59326.0,59310.0,0.11698018]
[1723646079407,0.3608,59326.0,59309.0,0.08445906]
[1723646079408,0.3608,59312.0,59311.0,0.08422235]
[1723646079596,0.445067,59312.0,59311.0,0.08422235]
[1723646079909,0.445067,59312.0,59309.0,0.00018806]
[1723646080105,0.445067,59312.0,59310.0,0.08480336]
[1723646080406,0.5058,59311.0,59309.0,0.00018806]
[1723646080604,0.5058,59311.0,59307.0,0.05031515]
[1723646080799,0.3608,59308.0,59306.0,0.05031515]
[1723646081000,0.084275,59306.0,59305.0,0.00025283]
[1723646081205,0.50584,59307.0,59304.0,0.06708525]
[1723646081396,0.8176,59305.0,59304.0,0.05026122]
[1723646081596,0.901877,59305.0,59304.0,0.05026122]
[1723646081802,1.407757,59305.0,59304.0,0.05026122]
[1723646082301,1.32348,59305.0,59302.0,0.05021362]
[1723646082504,0.3608,59305.0,59301.0,0.15162008]
[1723646082904,0.3608,59305.0,59302.0,0.06708525]
[1723646083110,0.08428,59303.0,59302.0,0.06708525]
[1723646083411,0.08428,59303.0,59301.0,0.06733808]
[1723646083711,0.36904959,59305.0,59302.0,0.06708525]
[1723646084111,0.37904959,59305.0,59304.0,0.001]
[1723646084408,0.37904959,59305.0,59253.0,0.06692218]
[1723646084409,0.25348179,59257.0,59253.0,0.06692218]
[1723646084601,0.25348179,59257.0,59226.0,0.122]
[1723646084602,0.445149,59254.0,59252.0,0.06692218]
[1723646084802,0.3608,59253.0,59248.0,0.05019636]
[1723646085006,0.3608,59253.0,59241.0,0.06692849]
[1723646085208,0.7216,59242.0,59240.0,0.084368]
[1723646085400,0.634137,59242.0,59240.0,0.23567374]
[1723646085611,0.00021791,59252.0,59251.0,0.084353]
[1723646086305,0.00021791,59252.0,59250.0,0.084354]
[1723646087208,0.00021791,59252.0,59251.0,0.51032]
[1723646087419,0.00021791,59252.0,59251.0,0.004]
[1723646088320,0.36101791,59252.0,59251.0,0.004]
[1723646089403,0.36201791,59252.0,59238.0,0.09238835]
[1723646089609,0.7216,59242.0,59238.0,0.00801735]
[1723646089822,0.00012835,59241.0,59232.0,0.08400195]
[1723646090007,0.3608,59233.0,59232.0,0.08400195]
[1723646091418,0.3608,59233.0,59232.0,0.48400195]
[1723646091615,0.3608,59235.0,59233.0,0.084379]
[1723646091804,0.3608,59235.0,59218.0,0.00640522]
[1723646092004,0.3608,59235.0,59224.0,0.084392]
[1723646092005,0.3608,59226.0,59224.0,0.084392]
[1723646092306,0.3608,59225.0,59211.0,0.9159]
[1723646092507,0.3608,59218.0,59217.0,0.23140391]
[1723646092707,0.36099798,59218.0,59217.0,0.23140391]
[1723646093119,0.36099798,59218.0,59217.0,1.13800391]
[1723646093512,0.36099798,59218.0,59217.0,1.14465669]
[1723646093706,0.36099798,59218.0,59217.0,0.99765478]
[1723646093912,0.36099798,59218.0,59217.0,0.09105478]
[1723646094111,0.36099798,59218.0,59217.0,0.084402]
[1723646094312,0.36099798,59218.0,59216.0,0.084403]
[1723646094819,0.3608,59225.0,59217.0,0.5066]
[1723646095212,0.084361,59246.0,59238.0,0.084371]
[1723646095213,0.3608,59240.0,59238.0,0.084371]
[1723646095608,0.00018396,59239.0,59238.0,0.084371]
[1723646095810,0.00018396,59239.0,59238.0,1.351611]
[1723646095811,9.6e-07,59239.0,59238.0,1.351611]
[1723646096014,9.6e-07,59239.0,59238.0,0.990811]
[1723646096206,0.00025327,59245.0,59244.0,0.084363]
[1723646096405,0.00025327,59245.0,59239.0,0.08437]
[1723646096628,0.3608,59240.0,59234.0,0.92668]
[1723646096917,0.3608,59240.0,59233.0,0.00025327]
[1723646097122,0.3608,59240.0,59238.0,0.084372]
[1723646097309,0.00015685,59239.0,59238.0,0.084372]
[1723646097512,0.00015685,59239.0,59238.0,0.484372]
[1723646097816,0.00025327,59245.0,59244.0,0.084363]
[1723646098020,0.00025327,59245.0,59244.0,0.484363]
[1723646098213,0.00025327,59245.0,59244.0,0.990723]
[1723646099119,0.35127,59255.0,59244.0,0.90636]
[1723646099311,0.3608,59271.0,59270.0,0.084326]
[1723646099710,0.3608,59271.0,59265.0,0.084332]
[1723646100018,0.3608,59271.0,59266.0,0.084332]
[1723646100211,0.3608,59271.0,59261.0,0.3608]
[1723646100411,0.3608,59275.0,59274.0,0.08432]
[1723646100810,0.3608,59275.0,59268.0,0.3608]
[1723646101121,0.3608,59275.0,59267.0,0.3608]
[1723646101514,0.3608,59275.0,59263.0,0.08458902]
[1723646101515,0.3608,59270.0,59263.0,0.08458902]
[1723646101910,0.3608,59264.0,59263.0,0.08458902]
[1723646102121,0.3608,59270.0,59268.0,0.084329]
[1723646102714,0.3608,59270.0,59268.0,0.590489]
[1723646102921,0.3608,59270.0,59269.0,0.50616]
[1723646103116,0.3608,59277.0,59275.0,0.084319]
[1723646103314,0.00025302,59280.0,59273.0,0.3608]
[1723646103522,0.3608,59278.0,59267.0,0.3608]
[1723646103720,0.00025302,59280.0,59279.0,0.084314]
[1723646104024,0.084315,59278.0,59273.0,0.445121]
[1723646104224,0.3608,59277.0,59268.0,0.541029]
[1723646104619,0.3608,59277.0,59268.0,0.4567]
[1723646105016,0.3608,59277.0,59276.0,0.084318]
[1723646105218,0.3608,59277.0,59268.0,0.4567]
[1723646105219,0.3608,59277.0,59273.0,0.084322]
[1723646105416,0.3608,59277.0,59268.0,0.4567]
[1723646106028,0.3608,59277.0,59276.0,0.084318]
[1723646106223,0.3608,59277.0,59268.0,0.4567]
[1723646106616,0.3608,59277.0,59273.0,0.084322]
[1723646106821,0.3608,59277.0,59268.0,0.4567]
[1723646107018,0.3608,59270.0,59269.0,0.084327]
[1723646107222,0.3608,59270.0,59263.0,0.00677835]
[1723646107223,0.084335,59264.0,59263.0,0.00025302]
[1723646107523,0.52947,59264.0,59263.0,0.00025302]
[1723646107825,0.951335,59264.0,59263.0,0.00025302]
[1723646108017,0.445135,59264.0,59263.0,0.00025302]
[1723646108219,0.445135,59264.0,59243.0,0.00850904]
[1723646108220,0.36743214,59264.0,59259.0,0.084342]
[1723646108530,0.36743214,59264.0,59248.0,0.00651556]
[1723646108531,0.3608,59260.0,59248.0,0.00651556]
[1723646108726,0.3608,59250.0,59249.0,0.084356]
[1723646108919,0.3608,59250.0,59249.0,0.590676]
[1723646109226,0.3608,59260.0,59259.0,0.084342]
[1723646109925,0.3608,59265.0,59264.0,0.084335]
[1723646110123,0.36105302,59265.0,59264.0,0.084335]
[1723646110423,0.36105302,59265.0,59259.0,0.084341]
[1723646110725,0.36105302,59265.0,59256.0,0.00660497]
[1723646110726,0.3608,59260.0,59250.0,0.04994199]
[1723646110927,0.3608,59260.0,59259.0,0.08459502]
[1723646111228,0.80594,59260.0,59259.0,0.00025302]
[1723646111644,0.084353,59251.0,59250.0,0.04994199]
[1723646111926,0.445153,59251.0,59250.0,0.04994199]
[1723646112126,0.084358,59248.0,59242.0,0.08343094]
[1723646112327,0.16873,59243.0,59242.0,0.00016202]
[1723646112626,0.16873,59243.0,59221.0,0.93346412]
[1723646112627,0.084395,59222.0,59221.0,0.00108]
[1723646112828,0.7216,59222.0,59221.0,0.084396]
[1723646113124,0.7216,59222.0,59212.0,0.18334048]
[1723646113125,0.084396,59221.0,59218.0,0.0844]
[1723646113323,0.72248,59222.0,59221.0,0.084396]
[1723646113631,0.72177282,59222.0,59221.0,0.084396]
[1723646113826,0.72177282,59222.0,59216.0,0.00025324]
[1723646114328,0.084396,59221.0,59216.0,0.00025324]
[1723646114634,0.084396,59221.0,59217.0,0.084402]
[1723646114925,0.72265282,59222.0,59219.0,0.084398]
[1723646115132,0.72177282,59222.0,59221.0,0.084396]
[1723646115329,0.00017282,59222.0,59221.0,0.084396]
[1723646115727,0.00025324,59227.0,59226.0,0.084389]
[1723646116133,0.00025324,59227.0,59221.0,0.084396]
[1723646116330,0.3608,59223.0,59222.0,0.084395]
[1723646116522,0.00025324,59227.0,59226.0,0.084389]
[1723646116924,0.00025324,59227.0,59226.0,0.590909]
[1723646117125,0.00025324,59227.0,59220.0,0.14912221]
[1723646117327,0.00025324,59227.0,59220.0,0.15566878]
[1723646117530,0.00025324,59227.0,59226.0,0.13451528]
[1723646117925,0.00025324,59227.0,59226.0,1.04103528]
[1723646118333,0.3608,59237.0,59236.0,0.084375]
[1723646119534,1.26724,59237.0,59231.0,0.00025324]
[1723646119835,0.44518,59232.0,59231.0,0.00025324]
[1723646120227,0.3608,59232.0,59231.0,0.00025324]
[1723646120427,0.44518,59232.0,59231.0,0.00025324]
[1723646120834,0.3608,59232.0,59231.0,0.08463524]
[1723646121132,0.3608,59232.0,59231.0,0.00025324]
[1723646121331,0.44518,59232.0,59231.0,0.00025324]
[1723646121527,0.3608,59232.0,59231.0,0.00025324]
[1723646121732,0.3608,59232.0,59231.0,0.08463524]
[1723646121929,0.3608,59232.0,59231.0,0.99111524]
[1723646122132,0.3608,59232.0,59231.0,0.59111524]
[1723646122340,0.3608,59232.0,59231.0,0.99111524]
[1723646122638,0.3608,59232.0,59231.0,0.00025324]
[1723646122834,0.44518,59232.0,59231.0,0.00025324]
[1723646123028,0.084386,59228.0,59227.0,0.05010527]
[1723646123343,0.084387,59227.0,59215.0,0.05010527]
[1723646123635,0.3608,59228.0,59227.0,0.084387]
[1723646123837,0.3608,59228.0,59225.0,0.084389]
[1723646124028,0.3608,59228.0,59221.0,0.05010527]
[1723646124235,0.3608,59228.0,59227.0,0.084388]
[1723646125036,0.3608,59228.0,59227.0,1.04101327]
[1723646125241,0.3608,59228.0,59227.0,0.990908]
[1723646125735,0.00025324,59232.0,59231.0,0.084382]
[1723646125942,0.00025324,59232.0,59231.0,0.590862]
[1723646126137,0.00025324,59232.0,59231.0,0.990862]
[1723646126342,0.3608,59234.0,59233.0,0.084379]
[1723646126738,0.3608,59234.0,59233.0,0.990859]
[1723646127245,0.3608,59234.0,59233.0,0.13448717]
[1723646127442,0.3608,59234.0,59233.0,0.084379]
[1723646129535,0.00025324,59239.0,59238.0,0.084372]
[1723646129936,0.00025324,59239.0,59238.0,1.05764206]
[1723646130138,0.00025324,59239.0,59238.0,0.990812]
[1723646130340,0.00025324,59239.0,59238.0,1.05764206]
[1723646130732,2.4e-07,59239.0,59238.0,1.075184]
[1723646131241,2.4e-07,59239.0,59238.0,1.24336889]
[1723646131441,0.3608,59258.0,59238.0,0.99108108]
[1723646131646,0.4254,59294.0,59238.0,0.99108108]
[1723646131647,0.00641066,59267.0,59266.0,0.084332]
[1723646131836,0.3608,59276.0,59260.0,0.08434]
[1723646132031,0.3608,59276.0,59274.0,0.08432]
[1723646132236,0.3608,59276.0,59270.0,0.05013546]
[1723646132435,0.3608,59276.0,59258.0,0.4864]
[1723646132436,0.3608,59271.0,59267.0,0.05013546]
[1723646132633,0.084328,59270.0,59266.0,0.05013546]
[1723646133045,0.084328,59270.0,59265.0,0.09088864]
[1723646133046,0.168658,59268.0,59267.0,0.00025324]
[1723646133238,0.168696,59255.0,59254.0,0.05013256]
[1723646133440,0.7216,59255.0,59246.0,0.05013256]
[1723646133746,0.7216,59255.0,59241.0,0.084368]
[1723646133747,0.084361,59246.0,59241.0,0.084368]
[1723646133945,0.3608,59242.0,59241.0,0.13450056]
[1723646134134,0.3608,59249.0,59240.0,0.3608]
[1723646134336,0.3608,59249.0,59247.0,0.06694415]
[1723646134538,0.084348,59255.0,59250.0,0.084354]
[1723646134738,0.00025324,59254.0,59253.0,0.05020401]
[1723646135048,0.08460224,59254.0,59253.0,0.05020224]
[1723646135250,0.00025324,59254.0,59252.0,0.06693868]
[1723646135448,0.00025324,59254.0,59246.0,0.08358474]
[1723646135449,0.08435,59253.0,59251.0,0.06693868]
[1723646135744,0.08435,59253.0,59246.0,0.08358474]
[1723646135745,0.3608,59252.0,59248.0,0.00025324]
[1723646135952,0.00025324,59254.0,59248.0,0.00025324]
[1723646136247,0.00025324,59254.0,59253.0,0.08358474]
[1723646136542,0.084351,59253.0,59251.0,0.08358474]
[1723646136749,0.084351,59253.0,59250.0,0.08358474]
[1723646136938,0.00025324,59254.0,59252.0,0.08358474]
[1723646137138,0.00025324,59254.0,59253.0,0.08358474]
[1723646137445,0.00025324,59254.0,59252.0,0.08383492]
[1723646137741,0.084355,59250.0,59249.0,0.08383492]
[1723646137943,0.084355,59250.0,59248.0,0.00025324]
[1723646137944,0.084356,59249.0,59248.0,0.00025324]
[1723646138140,0.675032,59249.0,59248.0,0.00025324]
[1723646138447,0.590676,59249.0,59245.0,0.06707524]
[1723646138647,0.3608,59246.0,59244.0,0.05032088]
[1723646138848,0.084369,59241.0,59239.0,0.06721]
[1723646139143,0.3608,59246.0,59239.0,0.06721]
[1723646139144,0.3608,59240.0,59239.0,0.08450476]
[1723646139342,0.445169,59240.0,59239.0,0.0873405]
[1723646139547,0.445169,59240.0,59239.0,0.00013476]
[1723646139745,0.445169,59240.0,59239.0,0.08774513]
[1723646140138,0.445169,59240.0,59239.0,0.00013476]
[1723646140345,0.445169,59240.0,59239.0,0.08402744]
[1723646140650,0.445169,59240.0,59239.0,0.0876337]
[1723646140851,0.3608,59240.0,59239.0,0.1720037]
[1723646142648,0.3608,59240.0,59239.0,0.26987258]
[1723646143953,0.3608,59246.0,59245.0,0.084362]
[1723646144149,0.084354,59251.0,59247.0,0.084359]
[1723646144341,0.084354,59251.0,59248.0,0.18822955]
[1723646144542,0.3608,59252.0,59249.0,0.18822955]
[1723646144744,0.084353,59251.0,59250.0,0.08394463]
[1723646145050,0.084355,59250.0,59249.0,0.08394463]
[1723646145242,0.083156,59249.0,59243.0,0.10073061]
[1723646145447,0.084366,59242.0,59239.0,0.00013476]
[1723646145644,0.445169,59240.0,59239.0,0.00013476]
[1723646145846,0.529538,59240.0,59239.0,0.08586766]
[1723646146145,0.529538,59240.0,59239.0,0.16984966]
[1723646146344,0.529538,59240.0,59239.0,0.08586766]
[1723646146753,0.445169,59240.0,59239.0,0.08586766]
[1723646148252,0.445169,59240.0,59239.0,0.0861998]
[1723646148655,0.445169,59240.0,59239.0,0.17019102]
[1723646149054,0.445169,59240.0,59239.0,0.08412598]
[1723646149356,0.445169,59240.0,59239.0,0.00013476]
[1723646149655,0.45174256,59240.0,59239.0,0.17017607]
[1723646149855,0.45174256,59240.0,59239.0,0.08578177]
[1723646152552,0.45174256,59240.0,59239.0,0.00013476]
[1723646152759,0.45174256,59240.0,59238.0,0.08401217]
[1723646152760,0.67518,59239.0,59238.0,0.06721985]
[1723646153151,0.67518,59239.0,59237.0,0.06721985]
[1723646153152,0.253116,59238.0,59237.0,0.06721985]
[1723646153452,0.084388,59227.0,59226.0,0.08403999]
[1723646153652,0.084388,59227.0,59225.0,0.08403999]
[1723646153653,0.084389,59226.0,59225.0,0.08403999]
[1723646153857,0.168784,59224.0,59223.0,0.08403999]
[1723646154047,0.168784,59224.0,59223.0,0.16577974]
[1723646154248,0.168784,59224.0,59223.0,0.08161751]
[1723646154456,0.084393,59223.0,59221.0,0.08401301]
[1723646154748,0.3608,59222.0,59218.0,0.00016913]
[1723646155060,0.00013476,59227.0,59226.0,0.084389]
[1723646155255,0.00013476,59227.0,59226.0,0.16554717]
[1723646155457,0.00013476,59227.0,59226.0,0.76302883]
[1723646155656,0.00013476,59227.0,59226.0,0.16554717]
[1723646155860,0.00013476,59227.0,59226.0,0.77285373]
[1723646156165,0.00013476,59227.0,59226.0,0.76308202]
[1723646156669,0.00013476,59227.0,59226.0,0.84435331]
[1723646156857,0.3608,59240.0,59238.0,0.084372]
[1723646157057,0.3608,59240.0,59239.0,0.07846364]
[1723646157460,0.3608,59240.0,59239.0,0.16283364]
[1723646158060,0.0069647,59256.0,59240.0,0.5064]
[1723646158359,0.3608,59266.0,59265.0,0.084333]
[1723646158559,0.3608,59266.0,59265.0,0.16279664]
[1723646158864,0.3608,59266.0,59265.0,0.16238827]
[1723646159061,0.3608,59266.0,59265.0,0.07846364]
[1723646159754,0.0071207,59269.0,59265.0,0.07846364]
[1723646159960,0.084327,59270.0,59266.0,0.17912128]
[1723646160156,0.00025324,59271.0,59267.0,0.07846364]
[1723646160460,0.00025324,59271.0,59264.0,0.084335]
[1723646160461,0.00025324,59271.0,59270.0,0.084326]
[1723646160761,0.00025324,59271.0,59270.0,0.0730038]
[1723646160964,0.90641324,59271.0,59268.0,0.08387333]
[1723646161160,0.90641324,59271.0,59260.0,0.00025324]
[1723646161161,0.40025324,59271.0,59260.0,5.7e-07]
[1723646161367,0.40025324,59271.0,59247.0,0.08389606]
[1723646161368,0.084353,59251.0,59247.0,0.08389606]
[1723646161555,0.7216,59248.0,59242.0,0.08389606]
[1723646161752,0.75551177,59270.0,59237.0,0.10085417]
[1723646161753,0.3608,59253.0,59246.0,0.08389606]
[1723646161957,0.3608,59253.0,59245.0,0.08389606]
[1723646162257,0.445158,59248.0,59247.0,0.08389606]
[1723646162562,0.084366,59243.0,59239.0,0.08389606]
[1723646162752,0.3608,59240.0,59239.0,0.16836356]